[Event "FIDE Open Sachove Univerzity QCC"]
[Site "Ceske Budejovice"]
[Date "2020.07.08"]
[Round "8.20"]
[White "Straka, Zdenek"]
[Black "Kral, Ladislav"]
[Result "1/2-1/2"]
[ECO "D17"]
[WhiteElo "1812"]
[BlackElo "1493"]
[Annotator "NA"]
[PlyCount "130"]
[EventDate "2020.07.01"]
[EventType "swiss"]
[EventCountry "CZE"]
[SourceTitle "playchess.com"]
[Source "ChessBase"]
[SourceQuality "1"]
[TimeControl "40/5400+30:1800+30"]

1. d4 {[%emt 0:11:48]} d5 {[%emt 0:00:00]} 2. c4 {[%emt 0:00:06]} c6 {[%emt 0:00:01]} 3. Nf3 {[%emt 0:00:06]} Nf6 {[%emt 0:00:16]} 4. Nc3 {[%emt 0:00:07]} dxc4 {[%emt 0:00:51]} 5. a4 {[%emt 0:00:14]} Bf5 {[%emt 0:00:41]} 6. Ne5 {[%emt 0:00:31]} e6 {[%emt 0:02:18]} 7. Nxc4 {[%emt 0:00:28]} Nbd7 {[%emt 0:01:35]} 8. f3 {[%emt 0:00:18]} h6 {[%emt 0:14:03] D17: Slav Defence: 5 a4 Bf5: Lines with 6 Nh4 and 6 Ne5.} (8... Bb4 $14) 9. e4 {[%emt 0:02:01]} Bh7 {[%emt 0:00:32]} 10. Be3 {[%emt 0:11:22]} Be7 {[%emt 0:08:14]} 11. Be2 {[%emt 0:00:41]} O-O {[%emt 0:01:27]} 12. O-O {[%emt 0:00:22]} Nb6 {[%emt 0:01:23]} 13. Ne5 {[%emt 0:05:27]} Nbd7 {[%emt 0:02:18]} 14. Nc4 {[%emt 0:01:38]} (14. Nd3 $14) 14... Nb6 $1 {[%emt 0:01:14]} 15. Qb3 {[%emt 0:01:31]} Nxc4 {[%emt 0:07:11]} 16. Bxc4 {[%emt 0:00:59]} Qb6 {[%emt 0:03:33] [#]} 17. Qa2 $146 {[%emt 0:00:44]} ({Predecessor:} 17. Rfd1 Qxb3 18. Bxb3 Rfd8 19. Rd2 Bb4 20. Rad1 Rd7 21. Rc2 Rad8 22. Rcc1 Ba5 23. Kf2 Bb6 24. Ne2 g5 25. h4 {½-½ (51) Antunes,L-Rouanet,L (2033) Sao Paulo 2011}) 17... Rad8 {[%emt 0:08:16]} 18. Bf2 {[%emt 0:02:51]} Qc7 {[%emt 0:03:29]} 19. Rfd1 {[%emt 0:05:03]} Rd7 {[%emt 0:05:50]} 20. Rac1 {[%emt 0:02:27]} Qb8 {[%emt 0:06:41]} 21. d5 {[%emt 0:01:01]} exd5 {[%emt 0:04:15]} 22. exd5 {[%emt 0:00:14]} cxd5 {[%emt 0:03:14]} 23. Nxd5 {[%emt 0:00:30]} Nxd5 {[%emt 0:01:13]} 24. Rxd5 {[%emt 0:01:12]} Rxd5 {[%emt 0:00:38]} 25. Bxd5 {[%emt 0:00:02]} Bd6 {[%emt 0:01:26]} 26. g3 {[%emt 0:04:44]} Bg6 {[%emt 0:00:34]} 27. Qc4 {[%emt 0:02:52]} Bf5 {[%emt 0:05:13]} 28. Kg2 {[%emt 0:00:23]} Rc8 {[%emt 0:01:08]} 29. Qf1 {[%emt 0:02:05]} Rxc1 {[%emt 0:00:48]} 30. Qxc1 {[%emt 0:00:31]} b6 {[%emt 0:01:16]} 31. Qc6 {[%emt 0:03:24]} Kf8 {[%emt 0:02:01]} 32. g4 {[%emt 0:06:56]} Bg6 {[%emt 0:01:51]} 33. h3 {[%emt 0:04:57]} Qc7 {[%emt 0:00:39]} 34. Qb5 {[%emt 0:02:28]} f6 {[%emt 0:00:39]} 35. Bc6 {[%emt 0:01:17]} Qd8 {[%emt 0:03:08]} 36. Qd5 {[%emt 0:07:25]} Qe7 {[%emt 0:02:46]} 37. a5 {[%emt 0:03:21]} bxa5 {[%emt 0:02:48]} 38. Qxa5 {[%emt 0:00:32]} Bb8 {[%emt 0:02:46]} 39. Bc5 {[%emt 0:06:44]} Bd6 {[%emt 0:00:06]} 40. Bxa7 {[%emt 0:00:54]} Qe2+ {[%emt 0:02:57]} (40... Bf7 $16) 41. Bf2 {[%emt 0:31:00]} Qe5 $2 {[%emt 0:04:32]} (41... Be8) 42. Qa8+ {[%emt 0:00:00]} Ke7 $2 {[%emt 0:02:23]} (42... Bb8 $1 $14) 43. Qb7+ {[%emt 0:00:00]} Kf8 {[%emt 0:00:20]} 44. Qc8+ {[%emt 0:00:00]} Ke7 {[%emt 0:01:11]} 45. Qd7+ {[%emt 0:00:00]} Kf8 {[%emt 0:00:17]} 46. Qc8+ {[%emt 0:00:00]} Ke7 {[%emt 0:00:29] [#]} 47. Qb7+ $2 {[%emt 0:00:00]} ({White must play} 47. f4 $1 $18 {[%cal Rf4e5][%mdl 512]} Qe6 (47... Qxf4 48. Qd7+) 48. Qb7+ Kf8 {[#]} 49. f5 $1 {[%mdl 576] Double Attack}) 47... Kf8 {[%emt 0:00:29] [#]} 48. Qb3 $2 {[%emt 0:01:40]} (48. f4 $1 $18 {[%cal Rf4e5]} Qe2 49. Qc8+ Be8 50. Qxe8+ Qxe8 51. Bxe8 Kxe8 52. Kf3) 48... Qh2+ {[%emt 0:03:36]} 49. Kf1 {[%emt 0:00:00]} Qxh3+ {[%emt 0:00:30]} 50. Ke2 {[%emt 0:00:12]} Qh2 {[%emt 0:00:56]} 51. Qe3 {[%emt 0:02:16]} Qe5 {[%emt 0:05:33]} 52. Qxe5 {[%emt 0:00:09]} Bxe5 {[%emt 0:00:17]} 53. b4 {[%emt 0:00:11]} Ke7 {[%emt 0:02:06]} 54. Bc5+ {[%emt 0:01:12]} Bd6 {[%emt 0:02:12]} 55. Ke3 {[%emt 0:00:16]} Ke6 {[%emt 0:01:16]} 56. f4 {[%emt 0:00:55]} Ke7 {[%emt 0:03:13]} 57. f5 {[%emt 0:00:44]} Bf7 {[%emt 0:00:44]} 58. Bxd6+ $11 {[%emt 0:00:56]} Kxd6 {[%emt 0:00:21]} 59. Bf3 {[%emt 0:00:15]} Be8 {[%emt 0:01:24]} 60. Kd4 {[%emt 0:00:19]} g6 {[%emt 0:02:29]} 61. fxg6 {[%emt 0:00:47]} Bxg6 {[%emt 0:00:10]} 62. b5 {[%emt 0:00:30]} Kc7 {[%emt 0:00:43]} 63. Kc5 {[%emt 0:00:13]} f5 {[%emt 0:00:25]} 64. b6+ {[%emt 0:00:16]} Kb8 {[%emt 0:00:18]} 65. gxf5 {[%emt 0:01:46]} Bxf5 {[%emt 0:00:22]} 1/2-1/2

[Event "FIDE Open Sachove Univerzity QCC"]
[Site "Ceske Budejovice"]
[Date "2020.07.08"]
[Round "8.21"]
[White "Zezula, Jakub"]
[Black "Huemer, Gerald"]
[Result "1-0"]
[ECO "B41"]
[WhiteElo "1449"]
[BlackElo "1721"]
[Annotator "NA"]
[PlyCount "35"]
[EventDate "2020.07.01"]
[EventType "swiss"]
[EventCountry "CZE"]
[SourceTitle "playchess.com"]
[Source "ChessBase"]
[SourceQuality "1"]
[TimeControl "40/5400+30:1800+30"]

1. e4 {[%emt 0:00:00]} c5 {[%emt 0:00:00]} 2. Nf3 {[%emt 0:00:00]} d6 {[%emt 0:00:00]} 3. d4 {[%emt 0:00:00]} cxd4 {[%emt 0:00:00]} 4. Nxd4 {[%emt 0:00:00]} a6 {[%emt 0:00:00]} 5. c4 {[%emt 0:00:08]} e6 {[%emt 0:00:02]} 6. Nc3 {[%emt 0:00:53]} Nf6 {[%emt 0:00:02]} 7. Be3 {[%emt 0:02:01]} Be7 {[%emt 0:00:09]} 8. Be2 {[%emt 0:00:46]} Nbd7 {[%emt 0:00:10]} 9. O-O {[%emt 0:01:11]} O-O {[%emt 0:00:06]} 10. Qd2 {[%emt 0:01:21]} Qc7 {[%emt 0:00:05]} 11. Rac1 {[%emt 0:01:03]} b6 {[%emt 0:00:08]} 12. f3 {[%emt 0:01:37]} Ne5 {[%emt 0:01:38]} 13. Rfd1 {[%emt 0:04:20]} Bb7 {[%emt 0:01:03]} 14. b3 {[%emt 0:00:27]} Rfd8 {[%emt 0:00:11]} 15. Qe1 {[%emt 0:04:06]} d5 {[%emt 0:01:43]} 16. cxd5 {[%emt 0:00:50]} exd5 {[%emt 0:01:51]} 17. Nxd5 {[%emt 0:01:33]} Qd6 {[%emt 0:01:51]} 18. Nf5 {[%emt 0:02:36]} 1-0

[Event "FIDE Open Sachove Univerzity QCC"]
[Site "Ceske Budejovice"]
[Date "2020.07.08"]
[Round "8.22"]
[White "Svejda, Karel"]
[Black "Smola, David"]
[Result "0-1"]
[ECO "C53"]
[WhiteElo "1387"]
[BlackElo "1649"]
[Annotator "NA"]
[PlyCount "53"]
[EventDate "2020.07.01"]
[EventType "swiss"]
[EventCountry "CZE"]
[SourceTitle "playchess.com"]
[Source "ChessBase"]
[SourceQuality "1"]
[TimeControl "40/5400+30:1800+30"]

1. e4 {[%emt 0:00:00]} e5 {[%emt 0:00:00]} 2. Nf3 {[%emt 0:00:00]} Nc6 {[%emt 0:00:27]} 3. d4 {[%emt 0:00:07]} exd4 {[%emt 0:01:07]} 4. Bc4 {[%emt 0:00:11]} Bc5 {[%emt 0:04:15]} 5. c3 {[%emt 0:00:35]} Qe7 {[%emt 0:05:27]} 6. O-O {[%emt 0:02:21]} dxc3 {[%emt 0:07:04]} 7. Nxc3 {[%emt 0:01:50]} h6 {[%emt 0:02:30]} 8. Bf4 {[%emt 0:09:47]} d6 {[%emt 0:04:48]} 9. e5 {[%emt 0:09:54]} Be6 {[%emt 0:08:43]} 10. Nd5 {[%emt 0:11:58]} Qd7 {[%emt 0:03:43]} 11. exd6 {[%emt 0:14:13]} Bxd6 {[%emt 0:06:15]} 12. Bxd6 {[%emt 0:02:12]} Qxd6 {[%emt 0:02:19]} 13. Qd3 {[%emt 0:08:00]} O-O-O {[%emt 0:04:32]} 14. Rfd1 {[%emt 0:02:11]} Na5 {[%emt 0:02:04]} 15. b3 {[%emt 0:00:12]} Nxc4 {[%emt 0:01:56]} 16. bxc4 {[%emt 0:00:18]} Nf6 {[%emt 0:00:21]} 17. Qd4 {[%emt 0:04:33]} c5 {[%emt 0:02:22]} 18. Qb2 {[%emt 0:02:43]} Nxd5 {[%emt 0:02:35]} 19. cxd5 {[%emt 0:00:40]} Bxd5 {[%emt 0:01:04]} 20. Qxg7 {[%emt 0:01:04]} Rdg8 {[%emt 0:01:41]} 21. Qc3 {[%emt 0:02:27]} Qc6 {[%emt 0:01:32]} 22. Rd3 {[%emt 0:01:13]} b6 {[%emt 0:04:36]} 23. Rad1 {[%emt 0:01:29]} Bxf3 {[%emt 0:02:23]} 24. Rxf3 {[%emt 0:02:42]} Rd8 {[%emt 0:05:24]} 25. Rfd3 {[%emt 0:02:10]} Rd6 {[%emt 0:09:03]} 26. Qd2 {[%emt 0:01:16]} Rxd3 {[%emt 0:00:30]} 27. Qxd3 {[%emt 0:00:30]} 0-1

[Event "FIDE Open Sachove Univerzity QCC"]
[Site "Ceske Budejovice"]
[Date "2020.07.08"]
[Round "8.23"]
[White "Svadlenka, Michal"]
[Black "Trcka, Bohdan"]
[Result "*"]
[ECO "C45"]
[WhiteElo "1395"]
[BlackElo "1528"]
[Annotator "NA"]
[PlyCount "39"]
[EventDate "2020.07.01"]
[EventType "swiss"]
[EventCountry "CZE"]
[SourceTitle "playchess.com"]
[Source "ChessBase"]
[SourceQuality "1"]
[TimeControl "40/5400+30:1800+30"]

1. e4 {[%emt 0:00:01]} e5 {[%emt 0:02:48]} 2. Nf3 {[%emt 0:00:14]} d6 {[%emt 0:00:03]} 3. d4 {[%emt 0:00:45]} exd4 {[%emt 0:00:24]} 4. Nxd4 {[%emt 0:00:21]} Nc6 {[%emt 0:00:21]} 5. Nxc6 {[%emt 0:01:36]} bxc6 {[%emt 0:00:02]} 6. Bc4 {[%emt 0:02:28]} Be6 {[%emt 0:00:15]} 7. Bxe6 {[%emt 0:01:02]} fxe6 {[%emt 0:00:05]} 8. Nc3 {[%emt 0:01:18]} Rb8 {[%emt 0:00:14]} 9. O-O {[%emt 0:01:45]} Be7 {[%emt 0:00:19]} 10. Qh5+ {[%emt 0:02:17]} g6 {[%emt 0:00:13]} 11. Qg4 {[%emt 0:00:22]} Qd7 {[%emt 0:00:25]} 12. b3 {[%emt 0:01:01]} e5 {[%emt 0:00:09]} 13. Qxd7+ {[%emt 0:01:31]} Kxd7 {[%emt 0:00:02]} 14. f4 {[%emt 0:01:24]} exf4 {[%emt 0:01:06]} 15. Rxf4 {[%emt 0:02:15]} Rf8 {[%emt 0:00:29]} 16. Rxf8 {[%emt 0:01:37]} Bxf8 {[%emt 0:00:30]} 17. Bb2 {[%emt 0:01:18]} Bg7 {[%emt 0:00:00]} 18. Rf1 {[%emt 0:01:25]} Nh6 {[%emt 0:00:00]} 19. Nd1 {[%emt 0:03:08]} Rg8 {[%emt 0:00:07]} 20. h3 {[%emt 0:05:39]} *

[Event "FIDE Open Sachove Univerzity QCC"]
[Site "Ceske Budejovice"]
[Date "2020.07.08"]
[Round "8.23"]
[White "Svadlenka, Michal"]
[Black "Trcka, Bohdan"]
[Result "1-0"]
[ECO "C45"]
[WhiteElo "1395"]
[BlackElo "1528"]
[Annotator "NA"]
[PlyCount "56"]
[EventDate "2020.07.01"]
[EventType "swiss"]
[EventCountry "CZE"]
[SourceTitle "playchess.com"]
[Source "ChessBase"]
[SourceQuality "1"]
[TimeControl "40/5400+30:1800+30"]

1. e4 {[%emt 0:00:01]} e5 {[%emt 0:02:48]} 2. Nf3 {[%emt 0:00:14]} d6 {[%emt 0:00:03]} 3. d4 {[%emt 0:00:45]} exd4 {[%emt 0:00:24]} 4. Nxd4 {[%emt 0:00:21]} Nc6 {[%emt 0:00:21]} 5. Nxc6 {[%emt 0:01:36]} bxc6 {[%emt 0:00:02]} 6. Bc4 {[%emt 0:02:28]} Be6 {[%emt 0:00:15]} 7. Bxe6 {[%emt 0:01:02]} fxe6 {[%emt 0:00:05]} 8. Nc3 {[%emt 0:01:18]} Rb8 {[%emt 0:00:14]} 9. O-O {[%emt 0:01:45]} Be7 {[%emt 0:00:19]} 10. Qh5+ {[%emt 0:02:17]} g6 {[%emt 0:00:13]} 11. Qg4 {[%emt 0:00:22]} Qd7 {[%emt 0:00:25]} 12. b3 {[%emt 0:01:01]} e5 {[%emt 0:00:09]} 13. Qxd7+ {[%emt 0:01:31]} Kxd7 {[%emt 0:00:02]} 14. f4 {[%emt 0:01:24]} exf4 {[%emt 0:01:06]} 15. Rxf4 {[%emt 0:02:15]} Rf8 {[%emt 0:00:29]} 16. Rxf8 {[%emt 0:01:37]} Bxf8 {[%emt 0:00:30]} 17. Bb2 {[%emt 0:01:18]} Bg7 {[%emt 0:00:00]} 18. Rf1 {[%emt 0:01:25]} Nh6 {[%emt 0:00:00]} 19. Nd1 {[%emt 0:03:08]} Rg8 {[%emt 0:00:07]} 20. Bxg7 {[%emt 0:05:39]} Rxg7 {[%emt 1:32:28]} 21. h3 {[%emt 1:09:03]} Nf7 {[%emt 0:00:30]} 22. Nf2 {[%emt 0:00:30]} Ng5 {[%emt 0:00:30]} 23. h4 {[%emt 0:00:30]} Ne6 {[%emt 0:00:30]} 24. Nd3 {[%emt 0:00:30]} Nd4 {[%emt 0:00:30]} 25. c4 {[%emt 0:00:30]} Ne2+ {[%emt 0:00:30]} 26. Kh2 {[%emt 0:00:30]} Re7 {[%emt 0:00:30]} 27. Nc1 {[%emt 0:00:30]} Nc3 {[%emt 0:00:30]} 28. Re1 {[%emt 0:00:30]} Nxe4 {[%emt 0:00:30]} 1-0

[Event "FIDE Open Sachove Univerzity QCC"]
[Site "Ceske Budejovice"]
[Date "2020.07.08"]
[Round "8.24"]
[White "Strapec, Lukas"]
[Black "Svadlenka, Dominik"]
[Result "1-0"]
[ECO "A01"]
[WhiteElo "1525"]
[BlackElo "1350"]
[Annotator "NA"]
[PlyCount "69"]
[EventDate "2020.07.01"]
[EventType "swiss"]
[EventCountry "CZE"]
[SourceTitle "playchess.com"]
[Source "ChessBase"]
[SourceQuality "1"]
[TimeControl "40/5400+30:1800+30"]

1. b3 {[%emt 0:00:00]} g6 {[%emt 0:00:00]} 2. Bb2 {[%emt 0:00:17]} Nf6 {[%emt 0:00:00]} 3. Bxf6 {[%emt 0:02:19]} exf6 {[%emt 0:00:07]} 4. Nc3 {[%emt 0:02:07]} Bg7 {[%emt 0:00:30]} 5. d4 {[%emt 0:01:56]} f5 {[%emt 0:00:56]} 6. e3 {[%emt 0:02:47]} O-O {[%emt 0:01:01]} 7. Nf3 {[%emt 0:01:33]} b6 {[%emt 0:13:50]} 8. Be2 {[%emt 0:07:08]} Bb7 {[%emt 0:03:19]} 9. Qd2 {[%emt 0:05:58]} Re8 {[%emt 0:03:46]} 10. O-O {[%emt 0:05:31]} d5 {[%emt 0:15:17]} 11. Bb5 {[%emt 0:12:13]} c6 {[%emt 0:00:50]} 12. Be2 {[%emt 0:03:45]} Nd7 {[%emt 0:04:34]} 13. a4 {[%emt 0:09:48]} a5 {[%emt 0:01:05]} 14. Na2 {[%emt 0:02:18]} g5 {[%emt 0:05:11]} 15. c4 {[%emt 0:08:02]} g4 {[%emt 0:00:19]} 16. Ne1 {[%emt 0:03:40]} h5 {[%emt 0:00:49]} 17. f4 {[%emt 0:04:48]} h4 {[%emt 0:02:16]} 18. cxd5 {[%emt 0:04:31]} Nf6 {[%emt 0:01:10]} 19. dxc6 {[%emt 0:04:43]} Bxc6 {[%emt 0:00:48]} 20. Nc3 {[%emt 0:03:24]} Bd5 {[%emt 0:03:19]} 21. Bc4 {[%emt 0:04:59]} Bxc4 {[%emt 0:03:00]} 22. bxc4 {[%emt 0:00:13]} Rc8 {[%emt 0:00:44]} 23. Qd3 {[%emt 0:02:16]} Qe7 {[%emt 0:01:03]} 24. Nc2 {[%emt 0:00:59]} Qd7 {[%emt 0:01:53]} 25. Nb5 {[%emt 0:01:41]} Ne4 {[%emt 0:00:27]} 26. Rac1 {[%emt 0:01:34]} Re7 {[%emt 0:05:10]} 27. d5 {[%emt 0:02:31]} Bb2 {[%emt 0:04:03]} 28. Rb1 {[%emt 0:01:18]} Nc5 {[%emt 0:00:40]} 29. Qd2 {[%emt 0:01:22]} Nxa4 {[%emt 0:00:35]} 30. Nca3 {[%emt 0:00:34]} Bg7 {[%emt 0:00:40]} 31. Nd4 {[%emt 0:00:32]} Nc5 {[%emt 0:03:12]} 32. Rxb6 {[%emt 0:00:28]} Qa7 {[%emt 0:00:53]} 33. Rc6 {[%emt 0:00:26]} Bxd4 {[%emt 0:01:24]} 34. Rxc8+ {[%emt 0:00:17]} Kh7 {[%emt 0:01:58]} 35. Qxd4 {[%emt 0:00:14]} 1-0

[Event "FIDE Open Sachove Univerzity QCC"]
[Site "Ceske Budejovice"]
[Date "2020.07.08"]
[Round "8.25"]
[White "Jodas, Daniel"]
[Black "Havelkova, Beata"]
[Result "1/2-1/2"]
[ECO "D91"]
[WhiteElo "1608"]
[BlackElo "1394"]
[Annotator "NA"]
[PlyCount "40"]
[EventDate "2020.07.01"]
[EventType "swiss"]
[EventCountry "CZE"]
[SourceTitle "playchess.com"]
[Source "ChessBase"]
[SourceQuality "1"]
[TimeControl "40/5400+30:1800+30"]

1. d4 {[%emt 0:00:00]} Nf6 {[%emt 0:00:00]} 2. Nf3 {[%emt 0:00:00]} g6 {[%emt 0:00:36]} 3. c4 {[%emt 0:01:09]} Bg7 {[%emt 0:00:40]} 4. Nc3 {[%emt 0:00:17]} d5 {[%emt 0:00:17]} 5. Bg5 {[%emt 0:01:32]} Ne4 {[%emt 0:10:45]} 6. Bf4 {[%emt 0:19:16]} Nxc3 {[%emt 0:05:15]} 7. bxc3 {[%emt 0:00:04]} Na6 {[%emt 0:10:18]} 8. e3 {[%emt 0:03:53]} c6 {[%emt 0:12:37]} 9. cxd5 {[%emt 0:07:04]} cxd5 {[%emt 0:01:08]} 10. Bxa6 {[%emt 0:00:28]} bxa6 {[%emt 0:00:19]} 11. O-O {[%emt 0:00:32]} Qa5 {[%emt 0:02:38]} 12. Qc2 {[%emt 0:02:00]} Bf5 {[%emt 0:01:02]} 13. Qb3 {[%emt 0:02:43]} Bd3 {[%emt 0:07:15]} 14. Qb7 {[%emt 0:09:24]} O-O {[%emt 0:04:58]} 15. Rfc1 {[%emt 0:17:55]} e6 {[%emt 0:02:23]} 16. Ne5 {[%emt 0:00:45]} Qb5 {[%emt 0:06:33]} 17. Qe7 {[%emt 0:03:09]} Rab8 {[%emt 0:05:58]} 18. Nxd3 {[%emt 0:07:56]} Rbe8 {[%emt 0:06:44]} 19. Bd6 {[%emt 0:01:30]} h5 {[%emt 0:07:25]} 20. h3 {[%emt 0:05:02]} h4 {[%emt 0:00:31]} 1/2-1/2

[Event "FIDE Open Sachove Univerzity QCC"]
[Site "Ceske Budejovice"]
[Date "2020.07.08"]
[Round "8.26"]
[White "Gorej, Jan"]
[Black "Vavrousek, Petr"]
[Result "1-0"]
[ECO "D11"]
[WhiteElo "1247"]
[BlackElo "1605"]
[Annotator "NA RC"]
[PlyCount "56"]
[EventDate "2020.07.01"]
[EventType "swiss"]
[EventCountry "CZE"]
[SourceTitle "playchess.com"]
[Source "ChessBase"]
[SourceQuality "1"]
[TimeControl "40/5400+30:1800+30"]

1. d4 {[%emt 0:00:00]} d5 {[%emt 0:00:37]} 2. c4 {[%emt 0:00:00]} c6 {[%emt 0:00:11]} 3. Nf3 {[%emt 0:00:05]} Nf6 {[%emt 0:00:08]} 4. Bf4 {[%emt 0:00:08]} e6 {[%emt 0:02:06]} 5. Nbd2 {[%emt 0:01:05]} Bb4 {[%emt 0:01:03]} 6. a3 {[%emt 0:03:02]} Bd6 {[%emt 0:00:44]} 7. Ne5 {[%emt 0:00:59]} Nh5 {[%emt 0:02:36]} 8. Be3 {[%emt 0:05:29]} O-O {[%emt 0:01:53]} 9. Qc2 {[%emt 0:03:09]} Nd7 {[%emt 0:00:30]} 10. Ndf3 {[%emt 0:01:39]} dxc4 {[%emt 0:11:10]} 11. Nxc4 {[%emt 0:05:46]} Bc7 {[%emt 0:00:39]} 12. Bd2 {[%emt 0:00:27]} Re8 {[%emt 0:03:31]} 13. e4 {[%emt 0:01:24]} c5 {[%emt 0:07:56]} 14. Bd3 {[%emt 0:06:18]} Nf4 {[%emt 0:01:08]} 15. Bf1 {[%emt 0:05:52]} b5 {[%emt 0:06:06]} 16. Nce5 {[%emt 0:05:06]} Nxe5 {[%emt 0:01:31]} 17. Nxe5 {[%emt 0:03:43]} Bxe5 {[%emt 0:01:34]} 18. dxe5 {[%emt 0:01:20]} Ng6 {[%emt 0:00:42]} 19. Bxb5 {[%emt 0:07:31]} Bd7 {[%emt 0:00:26]} 20. Be2 {[%emt 0:05:33]} Qc7 {[%emt 0:09:05]} 21. f4 {[%emt 0:03:10]} Rec8 {[%emt 0:01:45]} 22. Bc4 {[%emt 0:01:31]} Rab8 {[%emt 0:04:47]} 23. Ba6 {[%emt 0:04:25]} Rd8 {[%emt 0:01:08]} 24. a4 {[%emt 0:00:38]} Qb6 {[%emt 0:00:30]} 25. Bb5 {[%emt 0:02:52]} Bxb5 {[%emt 0:00:57]} 26. axb5 {[%emt 0:00:11]} Qxb5 {[%emt 0:01:40]} 27. Rxa7 {[%emt 0:04:22]} h6 {[%emt 0:07:15]} 28. h3 {[%emt 0:16:23]} Nh4 {[%emt 0:03:42]} 1-0

[Event "FIDE Open Sachove Univerzity QCC"]
[Site "Ceske Budejovice"]
[Date "2020.07.08"]
[Round "8.27"]
[White "Vojtek, Pavel"]
[Black "Veselsky, Jan"]
[Result "0-1"]
[ECO "B12"]
[WhiteElo "1292"]
[BlackElo "1580"]
[Annotator "NA"]
[PlyCount "70"]
[EventDate "2020.07.01"]
[EventType "swiss"]
[EventCountry "CZE"]
[SourceTitle "playchess.com"]
[Source "ChessBase"]
[SourceQuality "1"]
[TimeControl "40/5400+30:1800+30"]

1. e4 {[%emt 0:00:00]} c6 {[%emt 0:00:48]} 2. d4 {[%emt 0:00:00]} d5 {[%emt 0:00:02]} 3. e5 {[%emt 0:00:00]} Bf5 {[%emt 0:00:05]} 4. Nf3 {[%emt 0:00:13]} e6 {[%emt 0:00:08]} 5. Be2 {[%emt 0:00:57]} c5 {[%emt 0:00:11]} 6. c3 {[%emt 0:00:34]} Nc6 {[%emt 0:00:03]} 7. O-O {[%emt 0:01:01]} Nge7 {[%emt 0:00:26]} 8. Be3 {[%emt 0:02:36]} cxd4 {[%emt 0:01:34]} 9. cxd4 {[%emt 0:00:49]} Bg4 {[%emt 0:00:20]} 10. h3 {[%emt 0:01:12]} Bxf3 {[%emt 0:01:23]} 11. Bxf3 {[%emt 0:00:30]} Nf5 {[%emt 0:00:18]} 12. Bg4 {[%emt 0:02:40]} Nh4 {[%emt 0:04:00]} 13. Nd2 {[%emt 0:09:50]} Be7 {[%emt 0:02:22]} 14. Nb3 {[%emt 0:02:17]} Rc8 {[%emt 0:05:00]} 15. Rc1 {[%emt 0:02:56]} O-O {[%emt 0:01:33]} 16. Re1 {[%emt 0:18:12]} Qb6 {[%emt 0:25:18]} 17. Re2 {[%emt 0:06:59]} Nb4 {[%emt 0:07:07]} 18. a3 {[%emt 0:14:08]} Rxc1 {[%emt 0:00:08]} 19. Nxc1 {[%emt 0:03:36]} Nc6 {[%emt 0:00:50]} 20. Qb3 {[%emt 0:04:29]} Nxd4 {[%emt 0:08:29]} 21. Bxd4 {[%emt 0:05:05]} Qxd4 {[%emt 0:01:32]} 22. Qxb7 {[%emt 0:02:25]} Bc5 {[%emt 0:10:46]} 23. Qb3 {[%emt 0:05:47]} Ng6 {[%emt 0:02:32]} 24. Nd3 {[%emt 0:01:18]} Bb6 {[%emt 0:01:25]} 25. Qc2 {[%emt 0:03:33]} Rb8 {[%emt 0:05:03]} 26. Bh5 {[%emt 0:04:23]} Ne7 {[%emt 0:00:46]} 27. Nb4 {[%emt 0:01:20]} Rc8 {[%emt 0:00:45]} 28. Qd2 {[%emt 0:01:11]} Qh4 {[%emt 0:01:31]} 29. Bg4 {[%emt 0:01:12]} h5 {[%emt 0:01:28]} 30. Bf3 {[%emt 0:01:10]} Nf5 {[%emt 0:01:51]} 31. Qd3 {[%emt 0:02:16]} Rc1+ {[%emt 0:03:59]} 32. Kh2 {[%emt 0:00:08]} Nd4 {[%emt 0:03:06]} 33. Rd2 {[%emt 0:01:44]} Qf4+ {[%emt 0:00:48]} 34. g3 {[%emt 0:00:23]} Nxf3+ {[%emt 0:00:53]} 35. Kg2 {[%emt 0:00:29]} Qxd2 {[%emt 0:02:54]} 0-1

[Event "FIDE Open Sachove Univerzity QCC"]
[Site "Ceske Budejovice"]
[Date "2020.07.08"]
[Round "8.28"]
[White "Martirosyan, David"]
[Black "Karweit, Alex W"]
[Result "1/2-1/2"]
[ECO "C93"]
[WhiteElo "1560"]
[BlackElo "1579"]
[Annotator "NA"]
[PlyCount "77"]
[EventDate "2020.07.01"]
[EventType "swiss"]
[EventCountry "CZE"]
[SourceTitle "playchess.com"]
[Source "ChessBase"]
[SourceQuality "1"]
[TimeControl "40/5400+30:1800+30"]

1. e4 {[%emt 0:00:00]} e5 {[%emt 0:00:00]} 2. Nf3 {[%emt 0:00:09]} Nc6 {[%emt 0:00:00]} 3. Bb5 {[%emt 0:00:34]} a6 {[%emt 0:00:07]} 4. Ba4 {[%emt 0:00:31]} Nf6 {[%emt 0:00:06]} 5. d3 {[%emt 0:00:40]} b5 {[%emt 0:00:33]} 6. Bb3 {[%emt 0:00:07]} h6 {[%emt 0:00:48]} 7. O-O {[%emt 0:01:44]} Be7 {[%emt 0:01:00]} 8. c3 {[%emt 0:01:54]} d6 {[%emt 0:00:52]} 9. h3 {[%emt 0:01:02]} Bb7 {[%emt 0:00:53]} 10. Re1 {[%emt 0:01:27]} O-O {[%emt 0:01:00]} 11. Nbd2 {[%emt 0:03:32]} Na5 {[%emt 0:08:40]} 12. Bc2 {[%emt 0:04:53]} c5 {[%emt 0:11:00]} 13. Nf1 {[%emt 0:06:49]} Qc7 {[%emt 0:05:25]} 14. Ng3 {[%emt 0:05:31]} Rfe8 {[%emt 0:02:04]} 15. Nf5 {[%emt 0:08:05]} Bf8 {[%emt 0:00:38]} 16. Bd2 {[%emt 0:13:37]} Kh7 {[%emt 0:08:21]} 17. d4 {[%emt 0:19:16]} g6 {[%emt 0:02:37]} 18. Ng3 {[%emt 0:02:38]} Nc4 {[%emt 0:06:22]} 19. b3 {[%emt 0:02:09]} Nxd2 {[%emt 0:00:47]} 20. Qxd2 {[%emt 0:00:24]} b4 {[%emt 0:04:12]} 21. d5 {[%emt 0:02:28]} bxc3 {[%emt 0:01:43]} 22. Qxc3 {[%emt 0:00:12]} Rec8 {[%emt 0:02:31]} 23. Nd2 {[%emt 0:01:14]} Bg7 {[%emt 0:01:17]} 24. Qe3 {[%emt 0:05:07]} a5 {[%emt 0:05:57]} 25. Nc4 {[%emt 0:05:01]} Ba6 {[%emt 0:01:34]} 26. Bd3 {[%emt 0:05:23]} Rcb8 {[%emt 0:01:32]} 27. Rab1 {[%emt 0:01:49]} Bb5 {[%emt 0:04:02]} 28. Ne2 {[%emt 0:03:24]} Ne8 {[%emt 0:03:06]} 29. Nc3 {[%emt 0:00:46]} Bd7 {[%emt 0:00:12]} 30. Qf3 {[%emt 0:01:25]} Kg8 {[%emt 0:01:10]} 31. Rbc1 {[%emt 0:00:58]} Qc8 {[%emt 0:01:19]} 32. Qg3 {[%emt 0:00:25]} Kh7 {[%emt 0:00:34]} 33. f4 {[%emt 0:00:28]} f6 {[%emt 0:06:20]} 34. fxe5 {[%emt 0:00:39]} fxe5 {[%emt 0:08:05]} 35. Rf1 {[%emt 0:00:50]} a4 {[%emt 0:01:17]} 36. bxa4 {[%emt 0:01:06]} Bxa4 {[%emt 0:01:05]} 37. Rf7 {[%emt 0:00:24]} Rb7 {[%emt 0:00:25]} 38. Rcf1 {[%emt 0:00:30]} Raa7 {[%emt 0:01:30]} 39. Rxb7 {[%emt 0:00:41]} 1/2-1/2